bitfinex/quotes_BTCUSD_20250109
["timestamp","ask_amount","ask_price","bid_price","bid_amount"]
[1736401738198,0.02088944,94533.0,94531.0,0.2235]
[1736401738899,0.02088944,94533.0,94531.0,0.2245]
[1736401739307,0.02088944,94533.0,94531.0,0.2235]
[1736401740159,0.02088944,94533.0,94531.0,0.2245]
[1736401740359,0.03746276,94533.0,94531.0,0.2245]
[1736401740576,0.03746276,94533.0,94531.0,0.2235]
[1736401741063,0.03746276,94533.0,94531.0,0.2245]
[1736401741614,0.02088944,94533.0,94531.0,0.2245]
[1736401749563,0.02088944,94533.0,94531.0,0.1771]
[1736401751220,0.02430163,94532.0,94531.0,0.094]
[1736401751599,0.02088944,94533.0,94531.0,0.094]
[1736401753670,0.02088944,94533.0,94531.0,0.095]
[1736401753850,0.02088944,94533.0,94531.0,0.094]
[1736401754052,0.22212681,94538.0,94531.0,0.094]
[1736401754262,0.09510268,94540.0,94539.0,0.093]
[1736401754585,0.09510268,94540.0,94539.0,0.2164]
[1736401755638,0.09710268,94540.0,94539.0,0.2164]
[1736401755892,0.09510268,94540.0,94539.0,0.2164]
[1736401756149,0.09510268,94555.0,94539.0,0.2164]
[1736401756391,0.09510268,94555.0,94546.0,0.211535]
[1736401756840,0.09510268,94555.0,94554.0,0.093]
[1736401757040,0.211512,94557.0,94554.0,0.093]
[1736401758438,0.212512,94557.0,94554.0,0.093]
[1736401758812,0.001,94557.0,94554.0,0.093]
[1736401759441,0.001,94557.0,94556.0,0.304514]
[1736401759648,0.001,94557.0,94556.0,0.426114]
[1736401760766,0.09510268,94565.0,94564.0,0.211496]
[1736401761192,0.09510268,94565.0,94564.0,0.093]
[1736401761611,0.0001706,94569.0,94568.0,0.093]
[1736401762034,0.00066948,94569.0,94568.0,0.093]
[1736401762241,0.00066948,94569.0,94567.0,0.093]
[1736401763123,0.02397898,94569.0,94567.0,0.093]
[1736401763360,0.02397898,94569.0,94564.0,0.008]
[1736401763361,0.0197721,94568.0,94564.0,0.008]
[1736401763575,0.0197721,94568.0,94567.0,0.093]
[1736401765138,0.0197721,94568.0,94567.0,0.099]
[1736401765839,0.0197721,94568.0,94567.0,0.006]
[1736401766045,0.06411266,94568.0,94567.0,0.006]
[1736401766837,0.0197721,94568.0,94567.0,0.006]
[1736401767223,0.21215648,94569.0,94567.0,0.006]
[1736401768165,0.21215648,94569.0,94566.0,0.093]
[1736401768569,0.21215648,94569.0,94567.0,0.006]
[1736401768956,0.21215648,94569.0,94567.0,0.004]
[1736401769319,0.01976437,94568.0,94567.0,0.004]
[1736401770081,0.01976437,94568.0,94566.0,0.095]
[1736401770509,0.21215648,94569.0,94566.0,0.099]
[1736401770724,0.21215648,94569.0,94566.0,0.095]
[1736401770943,0.21215648,94569.0,94566.0,0.093]
[1736401771138,0.21215648,94569.0,94567.0,0.006]
[1736401771344,0.21215648,94569.0,94567.0,0.002]
[1736401771554,0.21215648,94569.0,94566.0,0.093]
[1736401771763,0.21215648,94569.0,94566.0,0.097]
[1736401772145,0.21215648,94569.0,94566.0,0.093]
[1736401772505,0.21215648,94569.0,94566.0,0.095]
[1736401773522,0.21215648,94569.0,94567.0,0.004]
[1736401773899,0.21215648,94569.0,94566.0,0.095]
[1736401774466,0.21215648,94569.0,94566.0,0.097]
[1736401774673,0.21215648,94569.0,94567.0,0.002]
[1736401775276,0.21215648,94569.0,94566.0,0.093]
[1736401775552,0.21215648,94569.0,94567.0,0.004]
[1736401776645,0.00066948,94569.0,94568.0,0.093]
[1736401777048,0.00066948,94569.0,94567.0,0.004]
[1736401777230,0.00066948,94569.0,94567.0,0.097]
[1736401777431,0.05292878,94569.0,94567.0,0.004]
[1736401777840,0.211488,94568.0,94567.0,0.004]
[1736401778242,0.211488,94568.0,94567.0,0.006]
[1736401778458,0.211488,94568.0,94567.0,0.002]
[1736401778889,0.211488,94568.0,94566.0,0.093]
[1736401779114,0.211488,94568.0,94567.0,0.001]
[1736401779817,0.211488,94568.0,94566.0,0.093]
[1736401779985,0.211488,94568.0,94567.0,0.001]
[1736401780642,0.211488,94568.0,94567.0,0.002]
[1736401781194,0.211488,94568.0,94565.0,0.093]
[1736401781400,0.29962109,94568.0,94565.0,0.093]
[1736401781786,0.31618974,94568.0,94566.0,0.093]
[1736401782397,0.22805665,94568.0,94566.0,0.093]
[1736401782643,0.22805665,94568.0,94560.0,0.093]
[1736401782851,0.211502,94562.0,94560.0,0.093]
[1736401783047,0.211502,94562.0,94561.0,0.093]
[1736401783256,0.211502,94562.0,94560.0,0.093]
[1736401783490,0.211502,94562.0,94561.0,0.093]
[1736401783633,0.23525978,94562.0,94561.0,0.093]
[1736401785082,0.211502,94562.0,94561.0,0.096]
[1736401785663,0.211502,94562.0,94561.0,0.097]
[1736401787794,0.211494,94565.0,94564.0,0.093]
[1736401788437,0.06542043,94567.0,94566.0,0.093]
[1736401789070,0.01066043,94567.0,94566.0,0.093]
[1736401789360,0.21215648,94569.0,94566.0,0.093]
[1736401790773,0.21215648,94569.0,94568.0,0.093]
[1736401791336,0.22261625,94569.0,94568.0,0.093]
[1736401792788,0.23918432,94569.0,94568.0,0.093]
[1736401795061,0.23918432,94569.0,94568.0,0.094]
[1736401795269,0.23918432,94569.0,94568.0,0.095]
[1736401797423,0.23918432,94569.0,94568.0,0.094]
[1736401797644,0.00066948,94569.0,94568.0,0.1715]
[1736401798554,0.00066948,94569.0,94568.0,0.0795]
[1736401798766,0.00066948,94569.0,94568.0,0.1715]
[1736401798971,0.00066948,94569.0,94568.0,0.0785]
[1736401799199,0.00066948,94569.0,94568.0,0.17555727]
[1736401800978,0.00066948,94569.0,94568.0,0.17755727]
[1736401802199,0.01723604,94569.0,94568.0,0.17755727]
[1736401802425,0.01723604,94569.0,94568.0,0.1765]
[1736401804841,0.01723604,94569.0,94568.0,0.099]
[1736401806343,0.00066948,94569.0,94568.0,0.099]
[1736401807261,0.00066948,94569.0,94568.0,0.097]
[1736401807615,0.00066948,94569.0,94568.0,0.098]
[1736401808006,0.00066948,94569.0,94568.0,0.097]
[1736401808440,0.00066948,94569.0,94568.0,0.094]
[1736401808873,0.00066948,94569.0,94568.0,0.096]
[1736401809234,0.00066948,94569.0,94568.0,0.1771]
[1736401809753,0.00066948,94569.0,94568.0,0.1791]
[1736401810364,0.09831326,94577.0,94569.0,0.211485]
[1736401810565,0.0984029,94577.0,94569.0,0.211485]
[1736401810776,0.09527293,94577.0,94569.0,0.211485]
[1736401811785,8.964e-05,94577.0,94569.0,0.211485]
[1736401812340,0.00208964,94577.0,94569.0,0.211485]
[1736401813164,8.964e-05,94577.0,94569.0,0.211485]
[1736401813712,0.00208964,94577.0,94569.0,0.211485]
[1736401814134,0.00208964,94577.0,94576.0,0.093]
[1736401814332,0.00208964,94577.0,94576.0,0.17435724]
[1736401815125,0.00208964,94577.0,94576.0,0.378657]
[1736401815342,0.00208964,94577.0,94576.0,0.37959976]
[1736401815797,8.964e-05,94577.0,94576.0,0.37959976]
[1736401816635,8.964e-05,94577.0,94576.0,0.37759976]
[1736401817047,8.964e-05,94577.0,94576.0,0.38759976]
[1736401817464,8.964e-05,94577.0,94576.0,0.38059976]
[1736401817666,8.964e-05,94577.0,94576.0,0.37759976]
[1736401817847,8.964e-05,94577.0,94576.0,0.28259976]
[1736401818257,8.964e-05,94577.0,94576.0,0.38259976]
[1736401818910,8.964e-05,94577.0,94576.0,0.39159976]
[1736401819118,8.964e-05,94577.0,94576.0,0.38259976]
[1736401819521,8.964e-05,94577.0,94576.0,0.39159976]
[1736401820365,0.01665283,94577.0,94576.0,0.51459976]
[1736401820550,8.964e-05,94577.0,94576.0,0.66459976]
[1736401820747,8.964e-05,94577.0,94576.0,0.71279976]
[1736401821172,8.964e-05,94577.0,94576.0,1.03859976]
[1736401822724,8.964e-05,94577.0,94576.0,1.02959976]
[1736401822947,8.964e-05,94577.0,94576.0,1.02459976]
[1736401823150,8.964e-05,94577.0,94576.0,1.03859976]
[1736401823594,0.01665173,94577.0,94576.0,1.02459976]
[1736401823798,0.01665173,94577.0,94576.0,1.03524279]
[1736401823997,0.01665173,94577.0,94576.0,1.05024279]
[1736401825391,8.964e-05,94577.0,94576.0,1.05024279]
[1736401825828,8.964e-05,94577.0,94576.0,1.04124279]
[1736401826035,8.964e-05,94577.0,94576.0,1.03524279]
[1736401826164,8.964e-05,94577.0,94576.0,1.06424279]
[1736401826374,8.964e-05,94577.0,94576.0,1.05024279]
[1736401827274,8.964e-05,94577.0,94576.0,1.03959976]
[1736401827766,8.964e-05,94577.0,94576.0,1.01659976]
[1736401828103,8.964e-05,94577.0,94576.0,0.82359976]
[1736401828281,8.964e-05,94577.0,94576.0,1.01659976]
[1736401828894,8.964e-05,94577.0,94576.0,0.91659976]
[1736401829303,8.964e-05,94577.0,94576.0,0.90159976]
[1736401829654,0.01665333,94577.0,94576.0,0.91659976]
[1736401830041,8.964e-05,94577.0,94576.0,0.91659976]
[1736401830396,8.964e-05,94577.0,94576.0,0.91059976]
[1736401830805,8.964e-05,94577.0,94576.0,0.90759976]
[1736401831216,8.964e-05,94577.0,94576.0,0.91659976]
[1736401833055,8.964e-05,94577.0,94576.0,0.59079976]
[1736401833457,0.01665338,94577.0,94576.0,0.59079976]
[1736401834555,8.964e-05,94577.0,94576.0,0.59079976]
[1736401840233,0.01665232,94577.0,94576.0,0.59079976]
[1736401840816,0.01665232,94577.0,94576.0,0.58479976]
[1736401841022,0.01665232,94577.0,94576.0,0.57579976]
[1736401841601,0.01665232,94577.0,94576.0,0.52759976]
[1736401841795,0.01665232,94577.0,94576.0,0.43659976]
[1736401841998,0.01665232,94577.0,94576.0,0.53659976]
[1736401842221,0.01665232,94577.0,94576.0,0.54259976]
[1736401842645,0.01665232,94577.0,94576.0,0.53359976]
[1736401842844,0.01665232,94577.0,94576.0,0.52759976]
[1736401843247,0.01665232,94577.0,94576.0,0.53259976]
[1736401844448,0.01665232,94577.0,94576.0,0.54159976]
[1736401844646,0.01665232,94577.0,94576.0,0.53259976]
[1736401845165,0.01665232,94577.0,94576.0,0.54159976]
[1736401846695,8.964e-05,94577.0,94576.0,0.54159976]
[1736401848066,8.964e-05,94577.0,94576.0,0.44159976]
[1736401848275,8.964e-05,94577.0,94576.0,0.54159976]
[1736401851637,8.964e-05,94577.0,94576.0,0.107]
[1736401851985,8.964e-05,94577.0,94576.0,0.1080572]
[1736401852185,8.964e-05,94577.0,94576.0,0.107]
[1736401853936,0.01665452,94577.0,94576.0,0.107]
[1736401854369,0.01665452,94577.0,94576.0,0.10805726]
[1736401854575,0.01665452,94577.0,94576.0,0.21235702]
[1736401854783,0.01665452,94577.0,94576.0,0.21129976]
[1736401855478,0.01665452,94577.0,94576.0,0.014]
[1736401855653,0.01665452,94577.0,94576.0,0.107]
[1736401856263,0.01665452,94577.0,94576.0,0.014]
[1736401856476,0.01665452,94577.0,94576.0,0.107]
[1736401857056,8.964e-05,94577.0,94576.0,0.107]
[1736401857261,8.964e-05,94577.0,94576.0,0.10805718]
[1736401860363,0.0166535,94577.0,94576.0,0.10805718]
[1736401860573,0.0166535,94577.0,94576.0,0.107]
[1736401864505,8.964e-05,94577.0,94576.0,0.107]
[1736401864672,8.964e-05,94577.0,94576.0,0.10805718]
[1736401868520,8.964e-05,94577.0,94576.0,0.107]
[1736401870417,0.01665474,94577.0,94576.0,0.107]
[1736401871394,8.964e-05,94577.0,94576.0,0.107]
[1736401874758,0.01665434,94577.0,94576.0,0.107]
[1736401878932,8.964e-05,94577.0,94576.0,0.107]
[1736401881972,0.12498964,94577.0,94576.0,0.014]
[1736401882490,0.14155595,94577.0,94576.0,0.014]
[1736401882697,0.14155595,94577.0,94576.0,0.009]
[1736401882920,0.2202575,94577.0,94576.0,0.011]
[1736401883224,0.32455726,94577.0,94576.0,0.002]
[1736401883454,0.32455726,94577.0,94576.0,0.01]
[1736401883705,0.32455726,94577.0,94576.0,0.002]
[1736401884132,0.32455726,94577.0,94576.0,0.008]
[1736401884453,0.24585571,94577.0,94576.0,0.008]
[1736401884895,0.42294,94576.0,94564.0,0.093]
[1736401885102,0.211474,94574.0,94564.0,0.093]
[1736401885322,0.10429976,94573.0,94564.0,0.093]
[1736401885531,0.73062231,94577.0,94576.0,0.093]
[1736401885532,0.65142231,94577.0,94576.0,0.093]
[1736401885736,0.01665595,94577.0,94576.0,0.093]
[1736401885943,8.964e-05,94577.0,94576.0,0.093]
[1736401888025,8.964e-05,94577.0,94576.0,0.09705724]
[1736401889057,8.964e-05,94577.0,94576.0,0.09905724]
[1736401889435,8.964e-05,94577.0,94576.0,0.09405724]
[1736401889642,8.964e-05,94577.0,94576.0,0.10205724]
[1736401889845,8.964e-05,94577.0,94576.0,0.10405724]
[1736401891347,8.964e-05,94577.0,94576.0,0.12405724]
[1736401891529,8.964e-05,94577.0,94576.0,0.336157]
[1736401891788,8.964e-05,94577.0,94576.0,0.45809976]
[1736401892419,8.964e-05,94577.0,94576.0,0.45609976]
[1736401892631,8.964e-05,94577.0,94576.0,0.54809976]
[1736401892851,8.964e-05,94577.0,94576.0,0.55809976]
[1736401893288,8.964e-05,94577.0,94576.0,0.70009976]
[1736401893672,8.964e-05,94577.0,94576.0,0.70909976]
[1736401893881,8.964e-05,94577.0,94576.0,0.70009976]
[1736401894329,8.964e-05,94577.0,94576.0,0.70909976]
[1736401894689,8.964e-05,94577.0,94576.0,0.69809976]
[1736401894898,8.964e-05,94577.0,94576.0,0.70309976]
[1736401895280,8.964e-05,94577.0,94576.0,0.69809976]
[1736401895463,8.964e-05,94577.0,94576.0,0.70309976]
[1736401896064,8.964e-05,94577.0,94576.0,1.03789976]
[1736401896279,8.964e-05,94577.0,94576.0,1.02889976]
[1736401896704,8.964e-05,94577.0,94576.0,1.03789976]
[1736401896996,8.964e-05,94577.0,94576.0,1.02889976]
[1736401897210,8.964e-05,94577.0,94576.0,1.03789976]
[1736401897559,8.964e-05,94577.0,94576.0,1.03289976]
[1736401897771,8.964e-05,94577.0,94576.0,1.03789976]
[1736401898783,8.964e-05,94577.0,94576.0,1.02889976]
[1736401899880,8.964e-05,94577.0,94576.0,1.03789976]
[1736401900084,8.964e-05,94577.0,94576.0,1.02889976]
[1736401900499,8.964e-05,94577.0,94576.0,1.03789976]
[1736401900725,8.964e-05,94577.0,94576.0,1.02389976]
[1736401900905,8.964e-05,94577.0,94576.0,1.02889976]
[1736401901471,8.964e-05,94577.0,94576.0,1.02389976]
[1736401901683,8.964e-05,94577.0,94576.0,1.02889976]
[1736401902216,8.964e-05,94577.0,94576.0,1.03789976]
[1736401902389,8.964e-05,94577.0,94576.0,1.02389976]
[1736401902588,8.964e-05,94577.0,94576.0,1.02889976]
[1736401903024,8.964e-05,94577.0,94576.0,1.03789976]
[1736401903556,8.964e-05,94577.0,94576.0,1.02889976]
[1736401903892,8.964e-05,94577.0,94576.0,1.03289976]
[1736401904311,8.964e-05,94577.0,94576.0,1.03789976]
[1736401904960,8.964e-05,94577.0,94576.0,1.03289976]
[1736401905305,8.964e-05,94577.0,94576.0,1.03789976]
[1736401905757,8.964e-05,94577.0,94576.0,1.02889976]
[1736401906389,8.964e-05,94577.0,94576.0,1.03789976]
[1736401906835,8.964e-05,94577.0,94576.0,1.02889976]
[1736401907038,8.964e-05,94577.0,94576.0,1.03289976]
[1736401907375,8.964e-05,94577.0,94576.0,1.02889976]
[1736401907590,8.964e-05,94577.0,94576.0,1.03789976]
[1736401907918,8.964e-05,94577.0,94576.0,1.03289976]
[1736401908129,8.964e-05,94577.0,94576.0,1.08385976]
[1736401909615,8.964e-05,94577.0,94576.0,1.09285976]
[1736401909841,8.964e-05,94577.0,94576.0,1.08385976]
[1736401910277,8.964e-05,94577.0,94576.0,1.09285976]
[1736401910488,8.964e-05,94577.0,94576.0,1.07885976]
[1736401910695,8.964e-05,94577.0,94576.0,1.08385976]
[1736401910876,8.964e-05,94577.0,94576.0,1.09285976]
[1736401911058,8.964e-05,94577.0,94576.0,1.08385976]
[1736401911254,8.964e-05,94577.0,94576.0,1.07885976]
[1736401911459,8.964e-05,94577.0,94576.0,1.09285976]
[1736401911894,8.964e-05,94577.0,94576.0,1.08785976]
[1736401912747,8.964e-05,94577.0,94576.0,1.07885976]
[1736401913440,8.964e-05,94577.0,94576.0,1.08785976]
[1736401914019,8.964e-05,94577.0,94576.0,1.08385976]
[1736401914224,8.964e-05,94577.0,94576.0,1.09285976]
[1736401914397,8.964e-05,94577.0,94576.0,1.08385976]
[1736401914907,8.964e-05,94577.0,94576.0,1.07885976]
[1736401915317,8.964e-05,94577.0,94576.0,1.08385976]
[1736401915955,8.964e-05,94577.0,94576.0,1.09285976]
[1736401916129,8.964e-05,94577.0,94576.0,1.08385976]
[1736401916534,8.964e-05,94577.0,94576.0,1.08785976]
[1736401916736,8.964e-05,94577.0,94576.0,1.07885976]
[1736401916939,8.964e-05,94577.0,94576.0,1.08285976]
[1736401917141,8.964e-05,94577.0,94576.0,1.09185976]
[1736401917369,8.964e-05,94577.0,94576.0,1.08785976]
[1736401917576,8.964e-05,94577.0,94576.0,1.07885976]
[1736401917783,8.964e-05,94577.0,94576.0,1.08385976]
[1736401918159,8.964e-05,94577.0,94576.0,1.07885976]
[1736401918573,8.964e-05,94577.0,94576.0,1.08385976]
[1736401918936,8.964e-05,94577.0,94576.0,1.09285976]
[1736401919341,8.964e-05,94577.0,94576.0,1.08385976]
[1736401919540,8.964e-05,94577.0,94576.0,1.09285976]
[1736401920361,8.964e-05,94577.0,94576.0,1.12576221]
[1736401921300,8.964e-05,94577.0,94576.0,1.12076221]
[1736401921499,8.964e-05,94577.0,94576.0,1.12576221]
[1736401922214,8.964e-05,94577.0,94576.0,1.11676221]
[1736401922417,8.964e-05,94577.0,94576.0,1.12576221]
[1736401922847,8.964e-05,94577.0,94576.0,1.11676221]
[1736401923057,8.964e-05,94577.0,94576.0,1.12076221]
[1736401923606,8.964e-05,94577.0,94576.0,1.11176221]
[1736401923806,8.964e-05,94577.0,94576.0,1.12576221]
[1736401924005,8.964e-05,94577.0,94576.0,1.11676221]
[1736401925487,8.964e-05,94577.0,94576.0,1.12576221]
[1736401925717,8.964e-05,94577.0,94576.0,1.11676221]
[1736401925948,8.964e-05,94577.0,94576.0,1.11176221]
[1736401926194,6.4e-07,94577.0,94576.0,1.12076221]
[1736401926437,6.4e-07,94577.0,94576.0,1.12576221]
[1736401927168,6.4e-07,94577.0,94576.0,1.21576257]
[1736401927410,0.0001704,94600.0,94599.0,0.654418]
[1736401927651,0.00022321,94600.0,94599.0,0.94994021]
[1736401928173,0.00022321,94600.0,94599.0,1.27574021]
[1736401929469,2.1e-07,94602.0,94601.0,0.443]
[1736401929721,2.1e-07,94602.0,94601.0,0.66080221]
[1736401929959,2.1e-07,94607.0,94606.0,0.677403]
[1736401930208,2.1e-07,94607.0,94606.0,0.81460521]
[1736401932272,2.1e-07,94607.0,94606.0,0.82360521]
[1736401932631,2.1e-07,94607.0,94606.0,0.82160521]
[1736401933159,2.1e-07,94607.0,94606.0,0.82360521]
[1736401933369,2.1e-07,94607.0,94606.0,0.78170276]
[1736401933505,2.1e-07,94607.0,94606.0,0.78870276]
[1736401933768,2.1e-07,94607.0,94606.0,0.80849962]
[1736401934177,2.1e-07,94607.0,94606.0,0.84134988]
[1736401934582,2.1e-07,94607.0,94606.0,0.98321063]
[1736401934795,8.1e-07,94608.0,94607.0,0.466]
[1736401934986,8.1e-07,94608.0,94607.0,0.92895002]
[1736401935191,8.1e-07,94608.0,94607.0,0.89609976]
[1736401936215,0.01655802,94608.0,94607.0,0.89609976]
[1736401936438,0.01655802,94608.0,94607.0,0.90509976]
[1736401936643,0.01655802,94608.0,94607.0,0.91209976]
[1736401936928,0.01655802,94608.0,94607.0,0.90309976]
[1736401937286,0.01655802,94608.0,94607.0,0.89609976]
[1736401938251,0.01655802,94608.0,94607.0,0.90509976]
[1736401938663,8.1e-07,94608.0,94607.0,0.90509976]
[1736401938891,8.1e-07,94608.0,94607.0,0.99961602]
[1736401939113,8.1e-07,94608.0,94607.0,1.00661602]
[1736401939280,8.1e-07,94608.0,94607.0,0.99761602]
[1736401939488,8.1e-07,94608.0,94607.0,1.00661602]
[1736401939893,8.1e-07,94608.0,94607.0,0.90309976]
[1736401940341,8.1e-07,94608.0,94607.0,0.91209976]
[1736401943508,8.1e-07,94608.0,94607.0,0.96681976]
[1736401951789,8.1e-07,94608.0,94607.0,1.04721976]
[1736401952532,8.1e-07,94608.0,94607.0,1.04021976]
[1736401952747,8.1e-07,94617.0,94616.0,0.193]
[1736401953014,8.1e-07,94617.0,94616.0,0.57135639]
[1736401953171,0.0808,94648.0,94645.0,0.093]
[1736401953381,0.00023503,94646.0,94645.0,0.40967115]
[1736401953593,0.00023503,94646.0,94645.0,0.40861476]
[1736401955810,0.00023503,94646.0,94645.0,0.41161476]
[1736401956241,0.00023503,94646.0,94645.0,0.40861476]
[1736401956432,0.00023503,94646.0,94645.0,0.41761476]
[1736401956775,0.01678899,94646.0,94645.0,0.40861476]
[1736401956997,0.00023503,94646.0,94645.0,0.41761476]
[1736401957429,0.00023503,94646.0,94645.0,0.41161476]
[1736401957610,0.00023503,94646.0,94645.0,0.42061476]
[1736401957989,0.00023503,94646.0,94645.0,0.40861476]
[1736401958394,0.00023503,94646.0,94645.0,0.41261476]
[1736401958601,0.01678977,94646.0,94645.0,0.41261476]
[1736401958800,0.01678977,94646.0,94645.0,0.40861476]
[1736401959202,0.01678977,94646.0,94645.0,0.41261476]
[1736401959897,0.01678977,94646.0,94645.0,0.42161476]
[1736401960395,0.01678977,94646.0,94645.0,0.41261476]
[1736401960694,0.01678977,94646.0,94645.0,0.42161476]
[1736401962455,0.00023503,94646.0,94645.0,0.42161476]
[1736401965241,0.00023503,94646.0,94645.0,0.41761476]
[1736401965644,0.00023503,94646.0,94645.0,0.42261476]
[1736401966413,0.00023503,94646.0,94645.0,0.43661476]
[1736401966607,0.00023503,94646.0,94645.0,0.44561476]
[1736401966824,0.00023503,94646.0,94645.0,0.43661476]
[1736401967023,0.00023503,94646.0,94645.0,0.43161476]
[1736401967223,0.00023503,94646.0,94645.0,0.44561476]
[1736401970141,3e-08,94646.0,94645.0,1.26293397]
[1736401970346,3e-08,94646.0,94645.0,1.29580766]
[1736401970960,3e-08,94646.0,94645.0,1.28180766]
[1736401971160,3e-08,94646.0,94645.0,1.28680766]
[1736401971386,3e-08,94646.0,94645.0,1.29580766]
[1736401971800,3e-08,94646.0,94645.0,1.29080766]
[1736401972020,3e-08,94646.0,94645.0,1.29780766]
[1736401972260,3e-08,94646.0,94645.0,1.39232392]
[1736401972429,3.9e-07,94646.0,94645.0,1.39232392]
[1736401972792,0.1389623,94679.0,94671.0,0.304257]
[1736401972992,0.00073972,94672.0,94671.0,0.304257]
[1736401973198,0.01729052,94672.0,94671.0,0.304257]
[1736401974336,0.01729052,94672.0,94671.0,0.313257]
[1736401974495,0.01729052,94672.0,94671.0,0.316257]
[1736401976918,0.00073972,94672.0,94671.0,0.316257]
[1736401979998,0.01729055,94672.0,94671.0,0.316257]
[1736401980165,0.00073972,94672.0,94671.0,0.316257]
[1736401980777,0.07893972,94672.0,94671.0,0.105]
[1736401980977,0.12503972,94672.0,94671.0,0.012]
[1736401981341,0.12503972,94672.0,94671.0,0.105]
[1736401981769,0.12503972,94672.0,94671.0,0.102]
[1736401982386,0.12503972,94672.0,94671.0,0.093]
[1736401982793,0.12503972,94672.0,94671.0,0.099]
[1736401983000,0.12503972,94672.0,94671.0,0.093]
[1736401983207,0.12503972,94672.0,94671.0,0.095]
[1736401983409,0.12503972,94672.0,94671.0,0.099]
[1736401983615,0.12503972,94672.0,94671.0,0.097]
[1736401984151,0.12503972,94672.0,94671.0,0.098]
[1736401984358,0.14159165,94672.0,94671.0,0.098]
[1736401984782,0.12503972,94672.0,94671.0,0.098]
[1736401984962,0.12503972,94672.0,94671.0,0.097]
[1736401985763,0.12503972,94672.0,94671.0,0.093]
[1736401985939,0.12503972,94672.0,94671.0,0.097]
[1736401986142,0.04683972,94672.0,94671.0,0.097]
[1736401986342,0.04683972,94672.0,94671.0,0.094]
[1736401986559,0.00073972,94672.0,94671.0,0.098]
[1736401986683,0.00073972,94672.0,94671.0,0.09805624]
[1736401987162,0.00073972,94672.0,94671.0,0.09905624]
[1736401987496,0.00073972,94672.0,94671.0,0.09505624]
[1736401987903,0.00073972,94672.0,94671.0,0.093]
[1736401988858,0.00073972,94672.0,94671.0,0.099]
[1736401989213,0.00073972,94672.0,94671.0,0.093]
[1736401989397,0.00073972,94672.0,94671.0,0.094]
[1736401989592,0.00073972,94672.0,94671.0,0.102]
[1736401989831,0.00073972,94672.0,94671.0,0.093]
[1736401990028,0.00073972,94672.0,94671.0,0.102]
[1736401990178,0.00073972,94672.0,94671.0,0.105]
[1736401992820,0.00073972,94672.0,94671.0,0.102]
[1736401993285,0.00073972,94672.0,94671.0,0.096]
[1736401993780,0.00073972,94672.0,94671.0,0.105]
[1736401995375,0.00073972,94672.0,94671.0,0.096]
[1736401995551,0.00073972,94672.0,94671.0,0.093]
[1736401995756,0.00073972,94672.0,94671.0,0.21035591]
[1736401996003,0.00073972,94672.0,94671.0,0.30479976]
[1736401996180,0.00073972,94672.0,94671.0,0.30419976]
[1736401996396,0.00073972,94672.0,94671.0,0.31019976]
[1736401996578,0.00073972,94672.0,94671.0,0.31319976]
[1736401996777,0.00073972,94672.0,94671.0,0.30419976]
[1736401996974,0.00073972,94672.0,94671.0,0.31319976]
[1736401997181,0.00073972,94672.0,94671.0,0.31019976]
[1736401997602,0.00073972,94672.0,94671.0,0.31419976]
[1736401998014,0.00073972,94672.0,94671.0,0.66419976]
[1736401998447,0.00073972,94672.0,94671.0,0.65519976]
[1736401999306,0.00073972,94672.0,94671.0,0.66419976]
[1736401999500,0.00073972,94672.0,94671.0,0.6970747]
[1736401999887,0.00073972,94672.0,94671.0,0.7060747]
[1736402000100,0.00073972,94672.0,94671.0,0.7020747]
[1736402000307,0.00073972,94672.0,94671.0,0.6840747]
[1736402000503,0.00073972,94672.0,94671.0,0.6890747]
[1736402000735,0.00073972,94672.0,94671.0,0.69955619]
[1736402000940,0.00073972,94672.0,94671.0,0.88361309]
[1736402001469,0.00073972,94672.0,94671.0,0.88961309]
[1736402001691,0.00073972,94672.0,94671.0,0.89861309]
[1736402001908,0.00073972,94672.0,94671.0,0.88961309]
[1736402002102,0.00073972,94672.0,94671.0,0.8424714]
[1736402002326,0.00073972,94672.0,94671.0,0.8514714]
[1736402003192,0.00073972,94672.0,94671.0,0.70955619]
[1736402003825,0.00073972,94672.0,94671.0,1.03535619]
[1736402005298,0.00073972,94672.0,94671.0,1.22446321]
[1736402006376,0.01728845,94672.0,94671.0,1.03535619]
[1736402007267,0.00073972,94672.0,94671.0,1.03535619]
[1736402010234,6.4e-07,94672.0,94671.0,1.03535619]
[1736402010612,0.0140623,94679.0,94678.0,0.504242]
[1736402010798,0.01421201,94679.0,94678.0,0.63154176]
[1736402011342,0.01421201,94679.0,94678.0,0.71344176]
[1736402011854,0.01421201,94679.0,94678.0,0.72244176]
[1736402013031,0.01421201,94679.0,94678.0,0.72744176]
[1736402015419,0.01421201,94679.0,94678.0,0.60018176]
[1736402015629,0.01421201,94679.0,94678.0,0.37254176]
[1736402017299,0.01421201,94679.0,94678.0,0.39554176]
[1736402021277,0.01421201,94679.0,94678.0,0.41636447]
[1736402028470,0.01421201,94679.0,94678.0,0.39336447]
[1736402030110,0.01421201,94679.0,94678.0,0.37254176]
[1736402032352,0.09301201,94679.0,94678.0,0.32954176]
[1736402032549,0.09301201,94679.0,94678.0,0.268242]
[1736402032974,0.01421201,94679.0,94678.0,0.268242]
[1736402044175,0.01410302,94679.0,94678.0,0.268242]
[1736402044382,0.0140058,94679.0,94678.0,0.268242]
[1736402056209,0.03055493,94679.0,94678.0,0.268242]
[1736402057248,0.0140058,94679.0,94678.0,0.225242]
[1736402057371,0.0140058,94679.0,94678.0,0.268242]
[1736402058345,0.0140058,94679.0,94678.0,0.263242]
[1736402058638,0.0140058,94679.0,94678.0,0.055]
[1736402058890,0.0140058,94679.0,94678.0,0.003]
[1736402059113,0.0140058,94679.0,94678.0,0.011]
[1736402059319,0.01378091,94679.0,94667.0,0.211266]
[1736402059520,0.01378091,94679.0,94678.0,0.043]
[1736402059719,0.01378091,94679.0,94678.0,0.051]
[1736402059893,0.01378091,94679.0,94678.0,0.043]
[1736402060243,0.01378091,94679.0,94678.0,0.05]
[1736402060646,0.01378091,94679.0,94678.0,0.053]
[1736402061311,0.01378091,94679.0,94678.0,0.05]
[1736402061544,0.01372892,94679.0,94678.0,0.007]
[1736402061975,0.01372892,94679.0,94678.0,0.009]
[1736402062340,0.01372892,94679.0,94678.0,0.052]
[1736402062457,0.01372892,94679.0,94678.0,0.009]
[1736402062671,0.01372892,94679.0,94678.0,0.052]
[1736402063819,0.01372892,94679.0,94678.0,0.009]
[1736402064509,0.01372892,94679.0,94678.0,0.052]
[1736402065032,0.01372892,94679.0,94678.0,0.009]
[1736402081959,0.67306717,94679.0,94678.0,0.009]
[1736402082180,0.2113,94652.0,94649.0,0.043]
[1736402082385,0.2113,94652.0,94647.0,0.09452501]
[1736402082386,0.4226,94652.0,94647.0,0.09452501]
[1736402083007,0.4226,94652.0,94644.0,0.14178751]